[Event "*** Titled Tuesday Blitz"]
[Site "Chess.com"]
[Date "2021.03.09"]
[Round "3"]
[White "AttackSparrow"]
[Black "The_filthy"]
[Result "1-0"]
[WhiteElo "2531"]
[BlackElo "2326"]
[TimeControl "180+1"]
[EndTime "10:28:40 PST"]
[Termination "AttackSparrow won by resignation"]

1. e4 {[%clk 0:03:00.9]} 1... e6 {[%clk 0:02:59.6]} 2. d4 {[%clk 0:03:00.1]}
2... d5 {[%clk 0:02:59.8]} 3. Bd3 {[%clk 0:03:00.6]} 3... Nf6 {[%clk 0:02:59.7]}
4. e5 {[%clk 0:03:00.7]} 4... Nfd7 {[%clk 0:03:00.1]} 5. f4 {[%clk 0:03:01.2]}
5... c5 {[%clk 0:03:00.3]} 6. c3 {[%clk 0:03:01.9]} 6... Nc6 {[%clk 0:03:00.7]}
7. Nf3 {[%clk 0:03:02.3]} 7... Qb6 {[%clk 0:03:00.9]} 8. Bc2 {[%clk 0:03:02.6]}
8... cxd4 {[%clk 0:03:00]} 9. cxd4 {[%clk 0:03:03.5]} 9... f6 {[%clk 0:02:55.4]}
10. O-O {[%clk 0:03:02]} 10... Be7 {[%clk 0:02:44.1]} 11. Kh1 {[%clk 0:03:00.5]}
11... O-O {[%clk 0:02:43.6]} 12. Nc3 {[%clk 0:02:59]} 12... f5 {[%clk
0:02:43.6]} 13. Rg1 {[%clk 0:02:55]} 13... g6 {[%clk 0:02:33.8]} 14. g4 {[%clk
0:02:54.2]} 14... fxg4 {[%clk 0:02:28.9]} 15. Rxg4 {[%clk 0:02:55.1]} 15... Rf7
{[%clk 0:02:22.4]} 16. Bxg6 {[%clk 0:02:44.6]} 16... hxg6 {[%clk 0:02:22.1]} 17.
Rxg6+ {[%clk 0:02:45.5]} 17... Rg7 {[%clk 0:02:19.2]} 18. Rxg7+ {[%clk
0:02:45.3]} 18... Kxg7 {[%clk 0:02:19.3]} 19. f5 {[%clk 0:02:37.5]} 19... exf5
{[%clk 0:02:12]} 20. Nxd5 {[%clk 0:02:28.9]} 20... Qd8 {[%clk 0:02:06.6]} 21.
Qd2 {[%clk 0:02:25.2]} 21... Nf8 {[%clk 0:01:53.4]} 22. Qh6+ {[%clk 0:02:24.2]}
22... Kg8 {[%clk 0:01:52.2]} 23. Nf6+ {[%clk 0:01:51.4]} 23... Bxf6 {[%clk
0:01:49.7]} 24. exf6 {[%clk 0:01:52.3]} 24... Kf7 {[%clk 0:01:37.7]} 25. Bf4
{[%clk 0:01:30.6]} 25... Be6 {[%clk 0:01:33.2]} 26. Ng5+ {[%clk 0:01:17.8]}
26... Ke8 {[%clk 0:01:31.5]} 27. f7+ {[%clk 0:01:15.6]} 27... Bxf7 {[%clk
0:01:22.8]} 28. Re1+ {[%clk 0:01:14.6]} 28... Ne7 {[%clk 0:01:21.9]} 29. Bd6
{[%clk 0:01:03.7]} 29... Ng6 {[%clk 0:01:18.1]} 30. Nxf7 {[%clk 0:00:53.5]}
30... Qd7 {[%clk 0:00:50.5]} 31. Bxe7 {[%clk 0:00:36.1]} 31... Qd5+ {[%clk
0:00:41.6]} 32. Kg1 {[%clk 0:00:36.5]} 32... Nxe7 {[%clk 0:00:36.7]} 33. Qh8+
{[%clk 0:00:24.8]} 33... Kxf7 {[%clk 0:00:35.6]} 34. Qh7+ {[%clk 0:00:24.7]}
34... Kf8 {[%clk 0:00:28.1]} 35. Qxe7+ {[%clk 0:00:25]} 35... Kg8 {[%clk
0:00:28.4]} 36. Qg5+ {[%clk 0:00:23.7]} 36... Kh7 {[%clk 0:00:26.6]} 37. Re7+
{[%clk 0:00:22.5]} 1-0

[Event "*** Titled Tuesday Blitz"]
[Site "Chess.com"]
[Date "2021.03.09"]
[Round "3"]
[White "Er_is_geen_hoop_meer"]
[Black "AlexPapasimakopoulos"]
[Result "1/2-1/2"]
[WhiteElo "2408"]
[BlackElo "2581"]
[TimeControl "180+1"]
[EndTime "10:28:41 PST"]
[Termination "Game drawn - insufficient material"]

1. Nf3 {[%clk 0:03:00.9]} 1... f5 {[%clk 0:02:58.2]} 2. c4 {[%clk 0:02:59]} 2...
Nf6 {[%clk 0:02:56.6]} 3. g3 {[%clk 0:02:58.6]} 3... g6 {[%clk 0:02:56.6]} 4. d4
{[%clk 0:02:55.1]} 4... Bg7 {[%clk 0:02:56.7]} 5. b4 {[%clk 0:02:55.1]} 5... O-O
{[%clk 0:02:57.4]} 6. Bg2 {[%clk 0:02:54.8]} 6... d6 {[%clk 0:02:50.1]} 7. Bb2
{[%clk 0:02:54]} 7... c6 {[%clk 0:02:46.7]} 8. O-O {[%clk 0:02:52.7]} 8... a5
{[%clk 0:02:45.6]} 9. a3 {[%clk 0:02:51.6]} 9... Ne4 {[%clk 0:02:42.9]} 10. Nbd2
{[%clk 0:02:47.2]} 10... Na6 {[%clk 0:02:34.8]} 11. Qb3 {[%clk 0:02:38.3]} 11...
Kh8 {[%clk 0:02:27.7]} 12. Nxe4 {[%clk 0:02:30.6]} 12... fxe4 {[%clk 0:02:28.6]}
13. Ng5 {[%clk 0:02:30]} 13... d5 {[%clk 0:02:29.3]} 14. cxd5 {[%clk 0:02:21]}
14... cxd5 {[%clk 0:02:30.2]} 15. f3 {[%clk 0:02:08]} 15... h6 {[%clk
0:02:24.2]} 16. Nh3 {[%clk 0:02:06.6]} 16... exf3 {[%clk 0:02:24.3]} 17. exf3
{[%clk 0:02:03.4]} 17... axb4 {[%clk 0:02:24]} 18. axb4 {[%clk 0:02:02]} 18...
Qb6 {[%clk 0:02:24]} 19. Nf4 {[%clk 0:01:47.8]} 19... Bxd4+ {[%clk 0:02:11.9]}
20. Kh1 {[%clk 0:01:39.5]} 20... e5 {[%clk 0:02:09.2]} 21. Bxd4 {[%clk
0:01:33.1]} 21... exd4 {[%clk 0:02:10.1]} 22. Nxd5 {[%clk 0:01:25]} 22... Qd6
{[%clk 0:02:05.5]} 23. f4 {[%clk 0:01:18.3]} 23... Be6 {[%clk 0:02:03.3]} 24.
Qc4 {[%clk 0:01:15.3]} 24... Bxd5 {[%clk 0:02:01.5]} 25. Qxd4+ {[%clk 0:01:14]}
25... Kh7 {[%clk 0:02:00.2]} 26. Qxd5 {[%clk 0:01:10]} 26... Qxd5 {[%clk
0:01:58.7]} 27. Bxd5 {[%clk 0:01:10.9]} 27... Nxb4 {[%clk 0:01:58.8]} 28. Bxb7
{[%clk 0:01:08.6]} 28... Rxa1 {[%clk 0:01:57.3]} 29. Rxa1 {[%clk 0:01:09.5]}
29... Rf7 {[%clk 0:01:56.5]} 30. Be4 {[%clk 0:01:06.9]} 30... Re7 {[%clk
0:01:57]} 31. Bf3 {[%clk 0:01:03.1]} 31... Nd3 {[%clk 0:01:54.5]} 32. Kg2 {[%clk
0:00:59.4]} 32... Ne1+ {[%clk 0:01:54.1]} 33. Kf2 {[%clk 0:00:59.3]} 33... Nxf3
{[%clk 0:01:54.6]} 34. Kxf3 {[%clk 0:01:00.2]} 34... h5 {[%clk 0:01:55.2]} 35.
Ra6 {[%clk 0:00:58.6]} 35... Rf7 {[%clk 0:01:53.3]} 36. Kg2 {[%clk 0:00:58.3]}
36... Rb7 {[%clk 0:01:52.2]} 37. Kh3 {[%clk 0:00:58.2]} 37... Rb5 {[%clk
0:01:49.4]} 38. Kh4 {[%clk 0:00:57.9]} 38... Kh6 {[%clk 0:01:49.5]} 39. Ra8
{[%clk 0:00:56.6]} 39... Kh7 {[%clk 0:01:48.4]} 40. h3 {[%clk 0:00:55.7]} 40...
Rc5 {[%clk 0:01:47.6]} 41. Rf8 {[%clk 0:00:54.1]} 41... Kg7 {[%clk 0:01:45.9]}
42. Ra8 {[%clk 0:00:52.9]} 42... Rb5 {[%clk 0:01:46.1]} 43. Ra7+ {[%clk
0:00:52.4]} 43... Kh6 {[%clk 0:01:44.4]} 44. Ra6 {[%clk 0:00:52.5]} 44... Rc5
{[%clk 0:01:43.2]} 45. g4 {[%clk 0:00:52.1]} 45... hxg4 {[%clk 0:01:44.1]} 46.
hxg4 {[%clk 0:00:52.1]} 46... Kg7 {[%clk 0:01:44.6]} 47. Ra7+ {[%clk 0:00:48.7]}
47... Kg8 {[%clk 0:01:43.8]} 48. Re7 {[%clk 0:00:46.7]} 48... Kf8 {[%clk
0:01:43.5]} 49. Re5 {[%clk 0:00:46.1]} 49... Rc7 {[%clk 0:01:40.7]} 50. Kg5
{[%clk 0:00:45.6]} 50... Kg7 {[%clk 0:01:40.8]} 51. Ra5 {[%clk 0:00:44]} 51...
Rb7 {[%clk 0:01:40.8]} 52. Ra6 {[%clk 0:00:41.8]} 52... Rb5+ {[%clk 0:01:40.8]}
53. f5 {[%clk 0:00:41.7]} 53... gxf5 {[%clk 0:01:40.9]} 54. gxf5 {[%clk
0:00:41.9]} 54... Rb7 {[%clk 0:01:41]} 55. Rg6+ {[%clk 0:00:37.2]} 55... Kh7
{[%clk 0:01:41.2]} 56. Re6 {[%clk 0:00:35.3]} 56... Kg7 {[%clk 0:01:40.6]} 57.
f6+ {[%clk 0:00:34.3]} 57... Kf7 {[%clk 0:01:40]} 58. Re5 {[%clk 0:00:33.7]}
58... Ra7 {[%clk 0:01:38.8]} 59. Kf5 {[%clk 0:00:33.2]} 59... Rb7 {[%clk
0:01:35.6]} 60. Rd5 {[%clk 0:00:32.5]} 60... Ra7 {[%clk 0:01:35.9]} 61. Ke5
{[%clk 0:00:32]} 61... Rb7 {[%clk 0:01:33.9]} 62. Rc5 {[%clk 0:00:31.7]} 62...
Ra7 {[%clk 0:01:34]} 63. Kf5 {[%clk 0:00:29.9]} 63... Rb7 {[%clk 0:01:34.3]} 64.
Rd5 {[%clk 0:00:29.1]} 64... Ra7 {[%clk 0:01:34.6]} 65. Re5 {[%clk 0:00:29.1]}
65... Rb7 {[%clk 0:01:34.8]} 66. Re7+ {[%clk 0:00:28.8]} 66... Rxe7 {[%clk
0:01:34.7]} 67. fxe7 {[%clk 0:00:29.7]} 67... Kxe7 {[%clk 0:01:35.6]} 1/2-1/2

[Event "*** Titled Tuesday Blitz"]
[Site "Chess.com"]
[Date "2021.03.09"]
[Round "3"]
[White "ludogoretz"]
[Black "SF-96"]
[Result "0-1"]
[WhiteElo "2363"]
[BlackElo "2546"]
[TimeControl "180+1"]
[EndTime "10:28:41 PST"]
[Termination "SF-96 won by resignation"]

1. d4 {[%clk 0:02:56]} 1... Nf6 {[%clk 0:02:59.6]} 2. Bf4 {[%clk 0:02:55.5]}
2... g6 {[%clk 0:02:59.4]} 3. e3 {[%clk 0:02:56]} 3... Bg7 {[%clk 0:02:59.6]} 4.
Nf3 {[%clk 0:02:56.6]} 4... O-O {[%clk 0:02:58.4]} 5. Bd3 {[%clk 0:02:56.8]}
5... b6 {[%clk 0:02:50.6]} 6. Nbd2 {[%clk 0:02:55.9]} 6... Bb7 {[%clk
0:02:50.5]} 7. O-O {[%clk 0:02:56.1]} 7... d6 {[%clk 0:02:50.4]} 8. h3 {[%clk
0:02:55.6]} 8... Nbd7 {[%clk 0:02:50.5]} 9. Qe2 {[%clk 0:02:54.3]} 9... a5
{[%clk 0:02:43.1]} 10. c3 {[%clk 0:02:54]} 10... Re8 {[%clk 0:02:33.6]} 11. e4
{[%clk 0:02:49]} 11... e5 {[%clk 0:02:30.6]} 12. dxe5 {[%clk 0:02:48.7]} 12...
dxe5 {[%clk 0:02:30.9]} 13. Bg5 {[%clk 0:02:48.4]} 13... Nc5 {[%clk 0:02:15.5]}
14. Bc2 {[%clk 0:02:44.7]} 14... Ne6 {[%clk 0:02:13.6]} 15. Rfd1 {[%clk
0:02:36.6]} 15... Nxg5 {[%clk 0:02:04.6]} 16. Nxg5 {[%clk 0:02:37.5]} 16... Qe7
{[%clk 0:02:05.2]} 17. Bb3 {[%clk 0:02:34.9]} 17... Rf8 {[%clk 0:02:03.1]} 18.
Ndf3 {[%clk 0:01:59.7]} 18... h6 {[%clk 0:01:29.9]} 19. Nxf7 {[%clk 0:01:59.4]}
19... Rxf7 {[%clk 0:01:30.4]} 20. Bxf7+ {[%clk 0:01:53]} 20... Kxf7 {[%clk
0:01:14.9]} 21. Qc4+ {[%clk 0:01:52.9]} 21... Kf8 {[%clk 0:01:14.8]} 22. Re1
{[%clk 0:01:50.7]} 22... Rd8 {[%clk 0:01:01.2]} 23. b4 {[%clk 0:01:45.5]} 23...
axb4 {[%clk 0:00:58.1]} 24. cxb4 {[%clk 0:01:46.4]} 24... Ne8 {[%clk 0:00:48.7]}
25. a4 {[%clk 0:01:40.8]} 25... Nd6 {[%clk 0:00:34.9]} 26. Qc2 {[%clk
0:01:40.5]} 26... Qf7 {[%clk 0:00:31.2]} 27. a5 {[%clk 0:01:37.7]} 27... bxa5
{[%clk 0:00:30.6]} 28. bxa5 {[%clk 0:01:38.6]} 28... Qc4 {[%clk 0:00:26.8]} 29.
Qxc4 {[%clk 0:01:30.6]} 29... Nxc4 {[%clk 0:00:27.7]} 30. a6 {[%clk 0:01:31]}
30... Ba8 {[%clk 0:00:24.3]} 31. Rec1 {[%clk 0:01:30.6]} 31... Nd6 {[%clk
0:00:17.8]} 32. Rxc7 {[%clk 0:01:30.3]} 32... Nxe4 {[%clk 0:00:18.4]} 33. Nh4
{[%clk 0:01:27.2]} 33... g5 {[%clk 0:00:11.9]} 34. Nf5 {[%clk 0:01:22.8]} 34...
Bf6 {[%clk 0:00:10.2]} 35. Nxh6 {[%clk 0:01:22.6]} 35... Nd6 {[%clk 0:00:10.5]}
36. a7 {[%clk 0:01:13.6]} 36... e4 {[%clk 0:00:09.4]} 37. Ng4 {[%clk 0:01:09.6]}
37... Bxa1 {[%clk 0:00:08.8]} 38. Ne3 {[%clk 0:00:58]} 38... Bd4 {[%clk
0:00:08.4]} 39. Nd5 {[%clk 0:00:55.9]} 39... Bxd5 {[%clk 0:00:08.1]} 0-1

[Event "*** Titled Tuesday Blitz"]
[Site "Chess.com"]
[Date "2021.03.09"]
[Round "3"]
[White "ARTHURMOTIVATOR"]
[Black "Grieve72"]
[Result "0-1"]
[WhiteElo "2335"]
[BlackElo "2534"]
[TimeControl "180+1"]
[EndTime "10:28:43 PST"]
[Termination "Grieve72 won by checkmate"]

1. e4 {[%clk 0:03:00.9]} 1... c5 {[%clk 0:02:59.5]} 2. b3 {[%clk 0:02:59.6]}
2... b6 {[%clk 0:02:48.1]} 3. Bb2 {[%clk 0:02:58.2]} 3... Bb7 {[%clk 0:02:48.6]}
4. Nc3 {[%clk 0:02:57]} 4... Nc6 {[%clk 0:02:47.3]} 5. Nf3 {[%clk 0:02:55.5]}
5... e6 {[%clk 0:02:47]} 6. d4 {[%clk 0:02:46.9]} 6... cxd4 {[%clk 0:02:45.3]}
7. Nxd4 {[%clk 0:02:47.8]} 7... Nf6 {[%clk 0:02:15.7]} 8. Nxc6 {[%clk
0:02:28.4]} 8... dxc6 {[%clk 0:01:55.4]} 9. Bd3 {[%clk 0:02:29.3]} 9... Be7
{[%clk 0:01:49.6]} 10. O-O {[%clk 0:01:47.8]} 10... O-O {[%clk 0:01:49.2]} 11.
Qf3 {[%clk 0:01:13.1]} 11... Qc7 {[%clk 0:01:26.2]} 12. Ne2 {[%clk 0:01:03.6]}
12... c5 {[%clk 0:01:03.5]} 13. Qh3 {[%clk 0:01:00]} 13... Nxe4 {[%clk
0:00:58.6]} 14. Ng3 {[%clk 0:00:47.5]} 14... Ng5 {[%clk 0:00:54.9]} 15. Qg4
{[%clk 0:00:31.7]} 15... Qc6 {[%clk 0:00:40.2]} 16. f3 {[%clk 0:00:29.3]} 16...
f5 {[%clk 0:00:38.6]} 17. Qf4 {[%clk 0:00:27]} 17... Nf7 {[%clk 0:00:28.3]} 18.
Qe3 {[%clk 0:00:19.5]} 18... Bg5 {[%clk 0:00:25.8]} 19. Qe2 {[%clk 0:00:19.5]}
19... Rfe8 {[%clk 0:00:18.5]} 20. Rae1 {[%clk 0:00:18.9]} 20... g6 {[%clk
0:00:15.4]} 21. f4 {[%clk 0:00:18.7]} 21... Bh6 {[%clk 0:00:15.8]} 22. h4 {[%clk
0:00:17.1]} 22... Bg7 {[%clk 0:00:15.5]} 23. Bxg7 {[%clk 0:00:16]} 23... Kxg7
{[%clk 0:00:16.4]} 24. h5 {[%clk 0:00:16]} 24... e5 {[%clk 0:00:17]} 25. hxg6
{[%clk 0:00:13.4]} 25... hxg6 {[%clk 0:00:17.9]} 26. Bxf5 {[%clk 0:00:12.1]}
26... gxf5 {[%clk 0:00:17.2]} 27. Qh5 {[%clk 0:00:09.7]} 27... Qxg2# {[%clk
0:00:13.1]} 0-1

[Event "*** Titled Tuesday Blitz"]
[Site "Chess.com"]
[Date "2021.03.09"]
[Round "3"]
[White "Loy_Konstantin"]
[Black "Anton_Demchenko"]
[Result "0-1"]
[WhiteElo "2355"]
[BlackElo "2880"]
[TimeControl "180+1"]
[EndTime "10:28:43 PST"]
[Termination "Anton_Demchenko won on time"]

1. e4 {[%clk 0:03:00.9]} 1... e5 {[%clk 0:02:59.8]} 2. Nf3 {[%clk 0:03:00.7]}
2... Nc6 {[%clk 0:03:00.5]} 3. d4 {[%clk 0:03:01]} 3... exd4 {[%clk 0:03:00.6]}
4. Nxd4 {[%clk 0:03:01.9]} 4... Bc5 {[%clk 0:03:00.9]} 5. Be3 {[%clk 0:03:02]}
5... Qf6 {[%clk 0:02:59.5]} 6. Nb5 {[%clk 0:03:01.8]} 6... Bxe3 {[%clk
0:02:58.8]} 7. fxe3 {[%clk 0:03:02.7]} 7... Qh4+ {[%clk 0:02:55]} 8. g3 {[%clk
0:03:02.5]} 8... Qd8 {[%clk 0:02:47.9]} 9. Qg4 {[%clk 0:03:01.7]} 9... Kf8
{[%clk 0:02:48]} 10. Qf4 {[%clk 0:03:01.1]} 10... d6 {[%clk 0:02:48]} 11. N1c3
{[%clk 0:03:00.8]} 11... Nf6 {[%clk 0:02:43.4]} 12. O-O-O {[%clk 0:02:53.6]}
12... a6 {[%clk 0:02:39.4]} 13. Nd4 {[%clk 0:02:48.1]} 13... Ne5 {[%clk
0:02:37.1]} 14. Be2 {[%clk 0:02:45.9]} 14... h5 {[%clk 0:02:29.7]} 15. h3 {[%clk
0:02:34.7]} 15... b5 {[%clk 0:01:50.8]} 16. g4 {[%clk 0:02:22.9]} 16... b4
{[%clk 0:01:51.2]} 17. Nd5 {[%clk 0:02:13.4]} 17... Nxd5 {[%clk 0:01:50.5]} 18.
exd5 {[%clk 0:02:11.5]} 18... Qf6 {[%clk 0:01:46.3]} 19. Qg3 {[%clk 0:01:48.7]}
19... h4 {[%clk 0:01:44.5]} 20. Qg2 {[%clk 0:01:44]} 20... Qg5 {[%clk
0:01:44.1]} 21. Qe4 {[%clk 0:01:33.5]} 21... Bd7 {[%clk 0:01:42.4]} 22. Rhf1
{[%clk 0:01:30.7]} 22... Kg8 {[%clk 0:01:38.4]} 23. Rf4 {[%clk 0:01:19.6]} 23...
Re8 {[%clk 0:01:33.9]} 24. Rdf1 {[%clk 0:00:51.2]} 24... Ng6 {[%clk 0:01:21.8]}
25. Qg2 {[%clk 0:00:32.8]} 25... Nxf4 {[%clk 0:01:20.5]} 26. exf4 {[%clk
0:00:32.9]} 26... Qe7 {[%clk 0:01:21]} 27. Bxa6 {[%clk 0:00:29]} 27... Qe3+
{[%clk 0:01:21.4]} 28. Qd2 {[%clk 0:00:26.6]} 28... Qxh3 {[%clk 0:01:22]} 29.
Be2 {[%clk 0:00:12.9]} 29... Qg2 {[%clk 0:01:20]} 30. Re1 {[%clk 0:00:09.7]}
30... h3 {[%clk 0:01:19.8]} 31. Bf3 {[%clk 0:00:05.7]} 31... Qxd2+ {[%clk
0:01:15.6]} 32. Kxd2 {[%clk 0:00:05.6]} 32... Rxe1 {[%clk 0:01:16.3]} 33. Kxe1
{[%clk 0:00:06]} 33... h2 {[%clk 0:01:17.2]} 34. Bh1 {[%clk 0:00:06.5]} 34...
Bxg4 {[%clk 0:01:17.8]} 35. Kf2 {[%clk 0:00:06.9]} 35... Bd7 {[%clk 0:01:07.8]}
36. Kg3 {[%clk 0:00:07]} 36... Rh3+ {[%clk 0:01:03.3]} 37. Kg2 {[%clk
0:00:05.9]} 37... Rh4 {[%clk 0:01:04]} 38. Nf3 {[%clk 0:00:04.8]} 38... Rxf4
{[%clk 0:01:03.5]} 39. Kg3 {[%clk 0:00:05.2]} 39... Re4 {[%clk 0:01:03.1]} 40.
Nxh2 {[%clk 0:00:05.1]} 40... Re2 {[%clk 0:01:03.5]} 41. Nf3 {[%clk 0:00:04.2]}
41... Rxc2 {[%clk 0:01:04]} 42. Nd4 {[%clk 0:00:04.4]} 42... Rxb2 {[%clk
0:01:04.2]} 43. Be4 {[%clk 0:00:04.5]} 43... Rxa2 {[%clk 0:01:04.3]} 0-1

[Event "*** Titled Tuesday Blitz"]
[Site "Chess.com"]
[Date "2021.03.09"]
[Round "3"]
[White "RD4ever"]
[Black "bazar-wokzal"]
[Result "1-0"]
[WhiteElo "2892"]
[BlackElo "2473"]
[TimeControl "180+1"]
[EndTime "10:28:46 PST"]
[Termination "RD4ever won on time"]

1. d4 {[%clk 0:03:00.9]} 1... Nf6 {[%clk 0:02:59.5]} 2. c4 {[%clk 0:03:00.7]}
2... Nc6 {[%clk 0:02:58.9]} 3. Nf3 {[%clk 0:02:52.1]} 3... e6 {[%clk 0:02:57.6]}
4. g3 {[%clk 0:02:51.9]} 4... Bb4+ {[%clk 0:02:56.8]} 5. Bd2 {[%clk 0:02:51.7]}
5... Qe7 {[%clk 0:02:43.3]} 6. Nc3 {[%clk 0:02:50.1]} 6... e5 {[%clk 0:02:35.1]}
7. d5 {[%clk 0:02:24]} 7... Nb8 {[%clk 0:02:14.8]} 8. Bg2 {[%clk 0:02:22.1]}
8... a5 {[%clk 0:02:12.6]} 9. O-O {[%clk 0:02:20.1]} 9... d6 {[%clk 0:02:12.5]}
10. Qc2 {[%clk 0:02:15.8]} 10... h6 {[%clk 0:02:07.3]} 11. Bc1 {[%clk
0:02:05.3]} 11... O-O {[%clk 0:01:57.2]} 12. Na4 {[%clk 0:01:57.7]} 12... Na6
{[%clk 0:01:47.7]} 13. a3 {[%clk 0:01:54.8]} 13... Bc5 {[%clk 0:01:47.9]} 14.
Nxc5 {[%clk 0:01:55.4]} 14... Nxc5 {[%clk 0:01:47.7]} 15. b3 {[%clk 0:01:56.3]}
15... Bg4 {[%clk 0:01:40.1]} 16. Bb2 {[%clk 0:01:54.6]} 16... a4 {[%clk
0:01:05.9]} 17. b4 {[%clk 0:01:53.2]} 17... Nb3 {[%clk 0:01:06.2]} 18. Rad1
{[%clk 0:01:49.3]} 18... Nd7 {[%clk 0:00:59.4]} 19. Nh4 {[%clk 0:01:46.2]} 19...
g5 {[%clk 0:00:36.4]} 20. Nf5 {[%clk 0:01:39.2]} 20... Qf6 {[%clk 0:00:36.7]}
21. Ne3 {[%clk 0:01:28.3]} 21... Bh5 {[%clk 0:00:36.3]} 22. f4 {[%clk
0:01:28.9]} 22... gxf4 {[%clk 0:00:32.7]} 23. gxf4 {[%clk 0:01:12.2]} 23... Qg6
{[%clk 0:00:31.6]} 24. Nf5 {[%clk 0:00:58.4]} 24... Kh7 {[%clk 0:00:27.1]} 25.
Kh1 {[%clk 0:00:49.9]} 25... Nf6 {[%clk 0:00:18.3]} 26. Rg1 {[%clk 0:00:37]}
26... Ng4 {[%clk 0:00:15.6]} 27. Rdf1 {[%clk 0:00:36.3]} 27... exf4 {[%clk
0:00:13.6]} 28. Be4 {[%clk 0:00:35.2]} 28... Rae8 {[%clk 0:00:07.6]} 29. Bd3
{[%clk 0:00:29.6]} 1-0

[Event "*** Titled Tuesday Blitz"]
[Site "Chess.com"]
[Date "2021.03.09"]
[Round "3"]
[White "Rozhkov_V"]
[Black "CSB7"]
[Result "0-1"]
[WhiteElo "2392"]
[BlackElo "2591"]
[TimeControl "180+1"]
[EndTime "10:28:46 PST"]
[Termination "CSB7 won on time"]

1. e4 {[%clk 0:03:00.9]} 1... c5 {[%clk 0:02:59.7]} 2. Nf3 {[%clk 0:03:00.6]}
2... d6 {[%clk 0:02:59.3]} 3. d4 {[%clk 0:03:00.6]} 3... cxd4 {[%clk 0:03:00.2]}
4. Nxd4 {[%clk 0:02:59.9]} 4... Nf6 {[%clk 0:03:00.4]} 5. Nc3 {[%clk 0:02:59.7]}
5... a6 {[%clk 0:03:00.8]} 6. Be3 {[%clk 0:02:58.6]} 6... e6 {[%clk 0:02:56.7]}
7. g4 {[%clk 0:02:57.8]} 7... h6 {[%clk 0:02:44.4]} 8. h3 {[%clk 0:02:37.4]}
8... b5 {[%clk 0:02:38.2]} 9. Bg2 {[%clk 0:02:37]} 9... Bb7 {[%clk 0:02:38.5]}
10. a3 {[%clk 0:02:30.4]} 10... Qc7 {[%clk 0:02:25.5]} 11. O-O {[%clk
0:02:29.3]} 11... Nc6 {[%clk 0:02:25.3]} 12. Qe2 {[%clk 0:02:15.6]} 12... Be7
{[%clk 0:02:18.7]} 13. Rad1 {[%clk 0:02:14.7]} 13... O-O {[%clk 0:02:09.8]} 14.
f4 {[%clk 0:02:13.9]} 14... Nxd4 {[%clk 0:02:09]} 15. Bxd4 {[%clk 0:02:13.5]}
15... e5 {[%clk 0:02:03.8]} 16. Be3 {[%clk 0:02:10.6]} 16... exf4 {[%clk
0:02:03.6]} 17. Bxf4 {[%clk 0:02:09.8]} 17... Nd7 {[%clk 0:01:58.8]} 18. Nd5
{[%clk 0:01:24.7]} 18... Bxd5 {[%clk 0:01:58]} 19. Rxd5 {[%clk 0:01:25.2]} 19...
Ne5 {[%clk 0:01:55.3]} 20. Rfd1 {[%clk 0:01:10.6]} 20... Rfd8 {[%clk 0:01:48.1]}
21. b3 {[%clk 0:01:01.9]} 21... Rac8 {[%clk 0:01:45.3]} 22. R1d2 {[%clk
0:01:01.6]} 22... Bg5 {[%clk 0:01:38.3]} 23. Bxg5 {[%clk 0:00:39]} 23... hxg5
{[%clk 0:01:39.2]} 24. Qe3 {[%clk 0:00:32.3]} 24... f6 {[%clk 0:01:36.4]} 25.
Kh2 {[%clk 0:00:28.8]} 25... Ng6 {[%clk 0:01:15.7]} 26. Kh1 {[%clk 0:00:16.8]}
26... Nf4 {[%clk 0:01:13.4]} 27. R5d4 {[%clk 0:00:14]} 27... Qc3 {[%clk
0:01:11.2]} 28. Qxc3 {[%clk 0:00:08.8]} 28... Rxc3 {[%clk 0:01:08.1]} 29. Kh2
{[%clk 0:00:08.3]} 29... Kf7 {[%clk 0:01:05.3]} 30. Bf1 {[%clk 0:00:03.1]} 30...
Ke7 {[%clk 0:01:04.7]} 31. a4 {[%clk 0:00:02.4]} 31... Rdc8 {[%clk 0:00:37]} 0-1

[Event "*** Titled Tuesday Blitz"]
[Site "Chess.com"]
[Date "2021.03.09"]
[Round "3"]
[White "ChessWarrior7197"]
[Black "Faqade"]
[Result "1-0"]
[WhiteElo "2919"]
[BlackElo "2631"]
[TimeControl "180+1"]
[EndTime "10:28:49 PST"]
[Termination "ChessWarrior7197 won on time"]

1. e4 {[%clk 0:03:00.9]} 1... e5 {[%clk 0:03:00.3]} 2. Nf3 {[%clk 0:03:00.3]}
2... Nc6 {[%clk 0:03:00.9]} 3. Bb5 {[%clk 0:03:00]} 3... a6 {[%clk 0:03:00.9]}
4. Ba4 {[%clk 0:03:00.3]} 4... Nf6 {[%clk 0:03:01.4]} 5. O-O {[%clk 0:03:00.4]}
5... Nxe4 {[%clk 0:03:01.4]} 6. d4 {[%clk 0:02:59.4]} 6... b5 {[%clk 0:03:01.2]}
7. Bb3 {[%clk 0:02:59.8]} 7... d5 {[%clk 0:03:01.7]} 8. Nxe5 {[%clk 0:02:59.5]}
8... Nxe5 {[%clk 0:02:59.4]} 9. dxe5 {[%clk 0:03:00.4]} 9... Be6 {[%clk
0:02:59.4]} 10. c3 {[%clk 0:02:57.4]} 10... Bc5 {[%clk 0:02:57.8]} 11. Nd2
{[%clk 0:02:55.8]} 11... O-O {[%clk 0:02:24.8]} 12. Nxe4 {[%clk 0:02:40]} 12...
dxe4 {[%clk 0:02:25.7]} 13. Bc2 {[%clk 0:02:40.8]} 13... Bc4 {[%clk 0:02:22.7]}
14. Re1 {[%clk 0:02:29.5]} 14... Bd3 {[%clk 0:02:22.3]} 15. Be3 {[%clk
0:02:29.3]} 15... Be7 {[%clk 0:01:06.2]} 16. Bxd3 {[%clk 0:02:24]} 16... exd3
{[%clk 0:00:58.2]} 17. Qg4 {[%clk 0:02:18.9]} 17... Qc8 {[%clk 0:00:41.5]} 18.
Qe4 {[%clk 0:02:06.3]} 18... Rd8 {[%clk 0:00:40.7]} 19. b4 {[%clk 0:01:45.4]}
19... Qe6 {[%clk 0:00:33]} 20. Bd4 {[%clk 0:01:45.5]} 20... Qc4 {[%clk
0:00:27.9]} 21. Rad1 {[%clk 0:00:48.6]} 21... Bxb4 {[%clk 0:00:26.9]} 22. e6
{[%clk 0:00:40.4]} 22... f6 {[%clk 0:00:03.7]} 23. e7 {[%clk 0:00:38.5]} 23...
Bxe7 {[%clk 0:00:04]} 24. Qxe7 {[%clk 0:00:38.1]} 24... Rac8 {[%clk 0:00:02.7]}
25. Re3 {[%clk 0:00:28.2]} 25... c5 {[%clk 0:00:02.7]} 26. Bxf6 {[%clk
0:00:28.6]} 26... Qg4 {[%clk 0:00:01.5]} 27. Rdxd3 {[%clk 0:00:22]} 1-0